fUST/lending_fUST_20250814
["ID","MTS","AMOUNT","RATE_DAILY","PERIOD"]
[379134859,1755154242898,-478.21,0.00018187,2]
[379134860,1755154242908,-460.0,0.00018187,2]
[379134861,1755154242918,-460.0,0.00018187,2]
[379134862,1755154242927,-460.0,0.00018187,2]
[379134863,1755154242938,-460.0,0.00018187,2]
[379134864,1755154242947,-460.0,0.00018187,2]
[379134865,1755154242957,-500.0,0.00018187,2]
[379134866,1755154242966,-500.0,0.00018187,2]
[379134867,1755154242975,-500.0,0.00018187,2]
[379134868,1755154242984,-500.0,0.00018187,2]
[379134869,1755154242995,-460.0,0.00018187,2]
[379134870,1755154243004,-460.0,0.00018187,2]
[379134871,1755154243013,-460.0,0.00018187,2]
[379134872,1755154243023,-460.0,0.00018187,2]
[379134873,1755154243032,-500.0,0.00018188,2]
[379134874,1755154243041,-500.0,0.00018188,2]
[379134875,1755154243051,-500.0,0.00018188,2]
[379134876,1755154243060,-500.0,0.00018188,2]
[379134877,1755154243069,-160.8894089,0.00018188,2]
[379134878,1755154243079,-460.06541847,0.00018188,2]
[379134879,1755154243088,-462.51504041,0.00018188,2]
[379134880,1755154243098,-460.0,0.00018188,2]
[379134881,1755154243107,-607.95,0.00018188,2]
[379134882,1755154243117,-460.0,0.00018188,2]
[379134883,1755154243126,-460.0,0.00018188,2]
[379134884,1755154243135,-460.0,0.00018188,2]
[379134885,1755154243146,-460.0,0.00018188,2]
[379134886,1755154243155,-460.0,0.00018188,2]
[379134887,1755154243165,-460.0,0.00018188,2]
[379134888,1755154243174,-460.0,0.00018188,2]
[379134889,1755154243184,-460.0,0.00018188,2]
[379134890,1755154243194,-460.0,0.00018188,2]
[379134891,1755154243204,-460.0,0.00018188,2]
[379134892,1755154243213,-460.79517747,0.00018188,2]
[379134893,1755154243222,-460.0,0.00018188,2]
[379134894,1755154243232,-461.34366558,0.00018188,2]
[379134895,1755154243242,-493.04224687,0.00018188,2]
[379134896,1755154243251,-460.0,0.00018188,2]
[379134897,1755154243261,-460.0,0.00018188,2]
[379134898,1755154243270,-460.0,0.00018188,2]
[379134899,1755154243279,-461.75929617,0.00018188,2]
[379134900,1755154243289,-460.0,0.00018188,2]
[379134901,1755154243298,-460.0,0.00018188,2]
[379134902,1755154243307,-510.64,0.00018188,2]
[379134903,1755154243317,-460.0,0.00018188,2]
[379134904,1755154243327,-460.0,0.00018188,2]
[379134905,1755154243336,-460.0,0.00018188,2]
[379134906,1755154243345,-460.0,0.00018188,2]
[379134907,1755154243355,-320.57577777,0.00018188,2]
[379134908,1755154243364,-460.0,0.00018188,2]
[379134909,1755154243374,-460.0,0.00018188,2]
[379134910,1755154243384,-460.0,0.00018188,2]
[379134911,1755154243393,-460.0,0.00018188,2]
[379134912,1755154243403,-460.0,0.00018188,2]
[379134913,1755154243412,-460.0,0.00018188,2]
[379134914,1755154243421,-460.0,0.00018188,2]
[379134915,1755154243430,-460.0,0.00018188,2]
[379134916,1755154243439,-460.0,0.00018188,2]
[379134917,1755154243449,-460.0,0.00018188,2]
[379134918,1755154243458,-565.41,0.00018188,2]
[379134919,1755154243468,-1019.21,0.00018188,2]
[379134920,1755154243477,-460.0,0.00018188,2]
[379134921,1755154243487,-460.0,0.00018188,2]
[379134922,1755154243496,-460.0,0.00018188,2]
[379134923,1755154243505,-460.0,0.00018188,2]
[379134924,1755154243515,-460.0,0.00018188,2]
[379134925,1755154243524,-460.0,0.00018188,2]
[379134926,1755154243534,-376.83669389,0.00018188,2]
[379134927,1755154243543,-460.0,0.00018188,2]
[379134928,1755154243552,-473.09081395,0.00018188,2]
[379134929,1755154243562,-460.0,0.00018188,2]
[379134930,1755154243571,-460.0,0.00018188,2]
[379134931,1755154243580,-460.0,0.00018188,2]
[379134932,1755154243590,-460.0,0.00018188,2]
[379134933,1755154243600,-460.0,0.00018188,2]
[379134935,1755154243609,-379.34405251,0.00018188,2]
[379134936,1755154243619,-460.0,0.00018188,2]
[379134939,1755154243629,-460.0,0.00018188,2]
[379134941,1755154243638,-579.1019817,0.00018188,2]
[379134943,1755154243648,-460.0,0.00018188,2]
[379134945,1755154243657,-460.0,0.00018188,2]
[379134947,1755154243666,-460.0,0.00018188,2]
[379134949,1755154243677,-460.0,0.00018188,2]
[379134951,1755154243687,-460.0,0.00018188,2]
[379134953,1755154243696,-569.12,0.00018188,2]
[379134955,1755154243705,-460.0,0.00018188,2]
[379134957,1755154243715,-460.0,0.00018188,2]
[379134959,1755154243724,-460.0,0.00018188,2]
[379134960,1755154243734,-500.0,0.00018188,2]
[379134962,1755154243744,-460.0,0.00018188,2]
[379134964,1755154243755,-460.0,0.00018188,2]
[379134982,1755154243927,-460.0,0.00018188,2]
[379134985,1755154243937,-460.0,0.00018188,2]
[379134987,1755154243947,-460.0,0.00018188,2]
[379134988,1755154243956,-460.0,0.00018188,2]
[379134989,1755154243966,-315.72091378,0.00018188,2]
[379134990,1755154243975,-982.57,0.00018188,2]
[379134991,1755154243985,-460.0,0.00018188,2]
[379134992,1755154243994,-604.76,0.00018188,2]
[379134993,1755154244005,-460.0,0.00018188,2]
[379134994,1755154244014,-460.0,0.00018188,2]
[379134995,1755154244024,-701.1,0.00018188,2]
[379134996,1755154244034,-461.50242983,0.00018188,2]
[379134997,1755154244043,-460.0,0.00018188,2]
[379134998,1755154244053,-460.0,0.00018188,2]
[379134999,1755154244062,-460.61253332,0.00018188,2]
[379135000,1755154244071,-460.0,0.00018188,2]
[379135001,1755154244081,-460.0,0.00018188,2]
[379135002,1755154244090,-460.0,0.00018188,2]
[379135003,1755154244099,-460.87303854,0.00018188,2]
[379135004,1755154244109,-460.0,0.00018188,2]
[379135005,1755154244120,-460.0,0.00018188,2]
[379135006,1755154244130,-460.0,0.00018188,2]
[379135007,1755154244139,-1173.66,0.00018188,2]
[379135008,1755154244149,-460.0,0.00018188,2]
[379135009,1755154244158,-460.0,0.00018188,2]
[379135010,1755154244167,-460.0,0.00018188,2]
[379135011,1755154244177,-460.0,0.00018188,2]
[379135012,1755154244187,-240.1,0.00018188,2]
[379135013,1755154244197,-460.11570537,0.00018188,2]
[379135014,1755154244207,-513.58,0.00018188,2]
[379135015,1755154244216,-251.70148214,0.00018189,2]
[379135016,1755154244226,-460.0,0.00018189,2]
[379135017,1755154244235,-460.0,0.00018189,2]
[379135018,1755154244244,-460.0,0.00018189,2]
[379135019,1755154244254,-460.0,0.00018189,2]
[379135020,1755154244263,-558.69,0.00018189,2]
[379135021,1755154244272,-554.91,0.00018189,2]
[379135022,1755154244282,-460.0,0.00018189,2]
[379135023,1755154244291,-460.0,0.00018189,2]
[379135024,1755154244300,-460.0,0.00018189,2]
[379135025,1755154244311,-460.0,0.00018191,2]
[379135026,1755154244320,-460.0,0.00018191,2]
[379135027,1755154244330,-369.49122345,0.00018191,2]
[379135028,1755154244339,-460.0,0.00018191,2]
[379135029,1755154244348,-460.0,0.00018191,2]
[379135030,1755154244358,-460.0,0.00018191,2]
[379135031,1755154244367,-460.0,0.00018191,2]
[379135032,1755154244377,-460.0,0.00018191,2]
[379135033,1755154244387,-460.0,0.00018191,2]
[379135034,1755154244396,-460.0,0.00018191,2]
[379135035,1755154244405,-460.0,0.00018191,2]
[379135036,1755154244414,-183.0,0.00018203,2]
[379135037,1755154244424,-183.0,0.00018255,2]
[379135038,1755154244433,-168.0,0.0001826,2]
[379135039,1755154244442,-183.0,0.00018299,2]
[379135040,1755154244452,-317.0,0.00018323,2]
[379135041,1755154244462,-168.0,0.00018353,2]
[379135042,1755154244471,-183.0,0.00018392,2]
[379135043,1755154244480,-183.0,0.00018392,2]
[379135044,1755154244490,-183.0,0.00018399,2]
[379135045,1755154244499,-183.0,0.00018402,2]
[379135046,1755154244508,-317.0,0.00018427,2]
[379135047,1755154244518,-167.57020893,0.00018441,2]
[379135048,1755154244528,-460.0,0.00018452,2]
[379135049,1755154244538,-460.0,0.00018452,2]
[379135050,1755154244547,-531.3447257,0.00018452,2]
[379135051,1755154244557,-460.0,0.00018452,2]
[379135052,1755154244567,-460.0,0.00018452,2]
[379135053,1755154244576,-460.0,0.00018452,2]
[379135054,1755154244585,-460.0,0.00018452,2]
[379135055,1755154244595,-460.0,0.00018452,2]
[379135056,1755154244604,-460.0,0.00018452,2]
[379135057,1755154244613,-460.0,0.00018452,2]
[379135058,1755154244623,-460.0,0.00018452,2]
[379135059,1755154244632,-460.0,0.00018452,2]
[379135060,1755154244642,-460.0,0.00018452,2]
[379135061,1755154244651,-460.0,0.00018452,2]
[379135062,1755154244660,-460.0,0.00018452,2]
[379135063,1755154244670,-579.12752813,0.00018452,2]
[379135064,1755154244679,-460.0,0.00018452,2]
[379135065,1755154244689,-460.0,0.00018452,2]
[379135066,1755154244698,-460.0,0.00018452,2]
[379135067,1755154244707,-460.0,0.00018452,2]
[379135068,1755154244717,-460.0,0.00018452,2]
[379135069,1755154244727,-460.0,0.00018452,2]
[379135070,1755154244736,-460.0,0.00018452,2]
[379135071,1755154244746,-460.0,0.00018452,2]
[379135072,1755154244757,-466.58978705,0.00018452,2]
[379135073,1755154244767,-502.26,0.00018452,2]
[379135074,1755154244777,-519.45,0.00018452,2]
[379135075,1755154244786,-460.0,0.00018452,2]
[379135077,1755154244797,-554.16,0.00018452,2]
[379135079,1755154244806,-460.0,0.00018452,2]
[379135080,1755154244815,-586.33,0.00018452,2]
[379135082,1755154244824,-460.0,0.00018452,2]
[379135084,1755154244834,-542.49,0.00018452,2]
[379135086,1755154244843,-460.0,0.00018452,2]
[379135088,1755154244852,-460.0,0.00018452,2]
[379135089,1755154244862,-460.0,0.00018452,2]
[379135090,1755154244871,-460.0,0.00018452,2]
[379135091,1755154244881,-460.0,0.00018452,2]
[379135092,1755154244890,-460.0,0.00018452,2]
[379135093,1755154244900,-460.0,0.00018455,2]
[379135094,1755154244909,-697.23,0.00018455,2]
[379135095,1755154244919,-966.38,0.00018455,2]
[379135096,1755154244928,-611.61,0.00018455,2]
[379135097,1755154244938,-2512.77,0.00018455,2]
[379135098,1755154244947,-4872.16,0.00018455,2]
[379135099,1755154244956,-460.0,0.00018455,2]
[379135100,1755154244965,-770.29,0.00018455,2]
[379135101,1755154244975,-460.0,0.00018456,2]
[379135102,1755154244984,-460.0,0.00018456,2]
[379135103,1755154244993,-460.0,0.00018456,2]
[379135104,1755154245002,-553.12,0.00018456,2]
[379135105,1755154245011,-479.68,0.00018456,2]
[379135106,1755154245020,-2996.79,0.00018456,2]
[379135107,1755154245030,-1004.08,0.00018456,2]
[379135108,1755154245039,-1063.5,0.00018456,2]
[379135109,1755154245048,-3975.35,0.00018456,2]
[379135110,1755154245058,-460.0,0.00018456,2]
[379135111,1755154245067,-460.0,0.00018456,2]
[379135112,1755154245076,-562.2059956,0.00018456,2]
[379135113,1755154245085,-1979.56,0.00018456,2]
[379135114,1755154245095,-3282.99,0.00018456,2]
[379135115,1755154245104,-460.0,0.00018456,2]
[379135116,1755154245114,-460.0,0.00018456,2]
[379135117,1755154245123,-745.41,0.00018456,2]
[379135118,1755154245133,-513.78,0.00018456,2]
[379135119,1755154245143,-2910.96,0.00018456,2]
[379135120,1755154245152,-557.11,0.00018456,2]
[379135121,1755154245162,-460.0,0.00018456,2]
[379135122,1755154245171,-1131.14,0.00018456,2]
[379135123,1755154245181,-471.03347464,0.00018456,2]
[379135124,1755154245190,-753.55,0.00018456,2]
[379135125,1755154245200,-460.0,0.00018457,2]
[379135126,1755154245209,-460.0,0.00018457,2]
[379135127,1755154245219,-460.0,0.00018457,2]
[379135128,1755154245228,-460.0,0.00018457,2]
[379135129,1755154245238,-460.0,0.00018457,2]
[379135130,1755154245248,-460.0,0.00018457,2]
[379135131,1755154245258,-704.83,0.00018457,2]
[379135132,1755154245267,-460.0,0.00018457,2]
[379135133,1755154245277,-460.0,0.00018457,2]
[379135134,1755154245286,-460.0,0.00018457,2]
[379135135,1755154245296,-1312.65,0.00018457,2]
[379135136,1755154245305,-2404.29,0.00018457,2]
[379135137,1755154245315,-1125.78,0.00018457,2]
[379135139,1755154245324,-460.0,0.00018457,2]
[379135141,1755154245334,-468.44808466,0.00018457,2]
[379135142,1755154245343,-460.0,0.00018457,2]
[379135143,1755154245353,-460.0,0.00018457,2]
[379135144,1755154245363,-804.85,0.00018457,2]
[379135145,1755154245372,-1391.19,0.00018457,2]
[379135146,1755154245382,-460.0,0.00018457,2]
[379135147,1755154245391,-151.0,0.00018457,2]
[379135148,1755154245402,-460.0,0.00018457,2]
[379135149,1755154245412,-460.0,0.00018457,2]
[379135150,1755154245423,-460.0,0.00018457,2]
[379135151,1755154245435,-1092.45,0.00018457,2]
[379135152,1755154245445,-625.45,0.00018457,2]
[379135153,1755154245454,-460.0,0.00018457,2]
[379135154,1755154245465,-460.0,0.00018457,2]
[379135155,1755154245475,-1445.8,0.00018457,2]
[379135156,1755154245485,-1080.13,0.00018457,2]
[379135157,1755154245495,-460.0,0.00018457,2]
[379135158,1755154245505,-460.0,0.00018457,2]
[379135159,1755154245515,-740.27,0.00018457,2]
[379135160,1755154245524,-460.0,0.00018457,2]
[379135161,1755154245534,-460.0,0.00018457,2]
[379135162,1755154245544,-547.75,0.00018457,2]
[379135163,1755154245553,-1023.92,0.00018457,2]
[379135164,1755154245563,-151.0,0.00018457,2]
[379135165,1755154245573,-1574.22,0.00018457,2]
[379135166,1755154245582,-460.0,0.00018457,2]
[379135167,1755154245591,-965.22,0.00018457,2]
[379135168,1755154245602,-460.0,0.00018457,2]
[379135169,1755154245612,-460.0,0.00018457,2]
[379135170,1755154245623,-460.0,0.00018457,2]
[379135171,1755154245633,-460.0,0.00018457,2]
[379135172,1755154245643,-460.0,0.00018457,2]
[379135173,1755154245653,-460.0,0.00018457,2]
[379135174,1755154245662,-460.0,0.00018457,2]
[379135175,1755154245672,-893.84,0.00018457,2]
[379135176,1755154245682,-460.0,0.00018457,2]
[379135177,1755154245692,-639.31,0.00018457,2]
[379135178,1755154245707,-460.0,0.00018457,2]
[379135179,1755154245721,-502.03,0.00018457,2]
[379135180,1755154245730,-460.0,0.00018457,2]
[379135181,1755154245740,-460.0,0.00018457,2]
[379135182,1755154245751,-460.0,0.00018457,2]
[379135183,1755154245765,-460.0,0.00018457,2]
[379135184,1755154245788,-460.0,0.00018457,2]
[379135185,1755154245813,-719.19,0.00018457,2]
[379135186,1755154245833,-505.71,0.00018457,2]
[379135187,1755154245857,-1423.27,0.00018457,2]
[379135188,1755154245883,-460.0,0.00018457,2]
[379135189,1755154245912,-460.0,0.00018457,2]
[379135190,1755154245935,-460.0,0.00018457,2]
[379135191,1755154245958,-460.0,0.00018457,2]
[379135192,1755154245982,-460.0,0.00018458,2]
[379135193,1755154246005,-151.0,0.00018458,2]
[379135194,1755154246028,-151.0,0.00018458,2]
[379135195,1755154246050,-151.0,0.00018458,2]
[379135196,1755154246074,-151.0,0.00018458,2]
[379135197,1755154246092,-460.0,0.00018458,2]
[379135198,1755154246102,-1392.94,0.00018458,2]
[379135199,1755154246111,-460.0,0.00018458,2]
[379135200,1755154246122,-151.0,0.00018458,2]
[379135201,1755154246131,-1207.07,0.00018458,2]
[379135202,1755154246140,-151.0,0.00018458,2]
[379135203,1755154246150,-471.24,0.00018458,2]
[379135204,1755154246159,-460.0,0.00018458,2]
[379135205,1755154246169,-1298.58,0.00018458,2]
[379135206,1755154246178,-13508.1,0.00018458,2]
[379135207,1755154246188,-1399.64,0.00018458,2]
[379135208,1755154246198,-706.06,0.00018458,2]
[379135209,1755154246208,-460.0,0.00018458,2]
[379135210,1755154246218,-925.98,0.00018458,2]
[379135212,1755154246228,-2572.32,0.00018458,2]
[379135214,1755154246237,-14824.88,0.00018458,2]
[379135216,1755154246247,-3664.5,0.00018458,2]
[379135218,1755154246256,-10481.44,0.00018458,2]
[379135220,1755154246265,-3351.34,0.00018458,2]
[379135222,1755154246275,-153.921467,0.00018458,2]
[379135224,1755154246284,-460.0,0.00018458,2]
[379135225,1755154246294,-844.04,0.00018458,2]
[379135226,1755154246303,-1518.23,0.00018458,2]
[379135228,1755154246312,-656.24,0.00018458,2]
[379135230,1755154246322,-460.0,0.00018458,2]
[379135232,1755154246332,-1157.88,0.00018458,2]
[379135234,1755154246341,-3504.77,0.00018458,2]
[379135236,1755154246351,-1653.1,0.00018458,2]
[379135238,1755154246360,-1115.64,0.00018458,2]
[379135240,1755154246369,-460.0,0.00018459,2]
[379135242,1755154246380,-460.0,0.00018459,2]
[379135244,1755154246389,-460.0,0.00018459,2]
[379135246,1755154246398,-460.0,0.00018459,2]
[379135247,1755154246407,-460.0,0.00018459,2]
[379135248,1755154246417,-781.01,0.00018459,2]
[379135249,1755154246426,-460.0,0.00018459,2]
[379135250,1755154246435,-460.0,0.00018459,2]
[379135254,1755154246485,-460.0,0.00018459,2]
[379135255,1755154246495,-166.777919,0.00018459,2]
[379135256,1755154246504,-460.0,0.00018459,2]
[379135257,1755154246514,-460.0,0.00018459,2]
[379135258,1755154246523,-500.13,0.00018459,2]
[379135259,1755154246532,-151.0,0.00018459,2]
[379135260,1755154246542,-460.0,0.00018459,2]
[379135261,1755154246551,-460.0,0.00018459,2]
[379135262,1755154246560,-460.0,0.00018459,2]
[379135263,1755154246569,-460.0,0.00018459,2]
[379135264,1755154246579,-460.0,0.00018459,2]
[379135265,1755154246588,-462.67232185,0.00018459,2]
[379135266,1755154246597,-460.0,0.00018459,2]
[379135267,1755154246607,-460.0,0.00018459,2]
[379135268,1755154246616,-151.0,0.00018459,2]
[379135269,1755154246626,-460.0,0.00018459,2]
[379135270,1755154246636,-460.0,0.00018459,2]
[379135271,1755154246646,-151.0,0.00018459,2]
[379135273,1755154246656,-1033.56,0.00018459,2]
[379135274,1755154246666,-460.0,0.00018459,2]
[379135275,1755154246676,-1711.88,0.00018459,2]
[379135276,1755154246685,-270.29688885,0.00018459,2]
[379135277,1755154246694,-460.0,0.00018459,2]
[379135278,1755154246704,-460.0,0.00018459,2]
[379135279,1755154246713,-460.0,0.00018459,2]
[379135280,1755154246722,-460.0,0.00018459,2]
[379135281,1755154246731,-460.0,0.00018459,2]
[379135282,1755154246741,-597.05,0.00018459,2]
[379135283,1755154246751,-460.0,0.00018459,2]
[379135284,1755154246764,-460.0,0.00018459,2]
[379135285,1755154246774,-460.0,0.00018459,2]
[379135286,1755154246783,-460.0,0.00018459,2]
[379135287,1755154246792,-460.0,0.00018459,2]
[379135288,1755154246802,-460.0,0.00018459,2]
[379135289,1755154246812,-460.0,0.00018459,2]
[379135290,1755154246821,-944.2,0.00018459,2]
[379135291,1755154246833,-517.62,0.00018459,2]
[379135292,1755154246842,-460.0,0.00018459,2]
[379135293,1755154246852,-577.08,0.00018459,2]
[379135294,1755154246861,-460.0,0.00018459,2]
[379135295,1755154246870,-460.0,0.00018459,2]
[379135296,1755154246880,-250.45890832,0.00018459,2]
[379135297,1755154246890,-460.0,0.00018459,2]
[379135298,1755154246900,-460.0,0.00018459,2]
[379135299,1755154246909,-631.92,0.00018459,2]
[379135300,1755154246919,-878.28,0.00018459,2]
[379135301,1755154246928,-1654.44,0.00018459,2]
[379135302,1755154246938,-460.0,0.00018459,2]
[379135303,1755154246947,-460.0,0.00018459,2]
[379135304,1755154246957,-460.0,0.00018459,2]
[379135305,1755154246967,-460.0,0.00018459,2]
[379135306,1755154246976,-958.96,0.00018459,2]
[379135307,1755154246986,-460.0,0.00018459,2]
[379135308,1755154246995,-460.0,0.00018459,2]
[379135309,1755154247005,-460.0,0.00018459,2]
[379135310,1755154247015,-460.0,0.00018459,2]
[379135311,1755154247023,-460.0,0.00018459,2]
[379135312,1755154247033,-151.0,0.00018459,2]
[379135313,1755154247042,-460.0,0.00018459,2]
[379135314,1755154247052,-460.0,0.00018459,2]
[379135315,1755154247061,-460.0,0.00018459,2]
[379135316,1755154247072,-460.0,0.00018459,2]
[379135317,1755154247089,-460.0,0.00018459,2]
[379135318,1755154247099,-460.0,0.00018459,2]
[379135319,1755154247109,-703.46,0.00018459,2]
[379135320,1755154247118,-460.0,0.00018459,2]
[379135321,1755154247128,-460.0,0.00018459,2]
[379135322,1755154247138,-523.09,0.00018459,2]
[379135323,1755154247147,-460.0,0.00018459,2]
[379135324,1755154247157,-460.0,0.00018459,2]
[379135325,1755154247166,-460.0,0.00018459,2]
[379135326,1755154247175,-460.0,0.00018459,2]
[379135327,1755154247185,-151.0,0.00018459,2]
[379135328,1755154247194,-460.0,0.00018459,2]
[379135329,1755154247204,-332.06121132,0.00018459,2]
[379135330,1755154247214,-460.0,0.00018459,2]
[379135331,1755154247223,-460.0,0.00018459,2]
[379135332,1755154247232,-460.0,0.00018459,2]
[379135333,1755154247242,-903.92,0.00018459,2]
[379135334,1755154247251,-1205.27,0.00018459,2]
[379135335,1755154247261,-460.0,0.00018459,2]
[379135336,1755154247270,-837.1,0.00018459,2]
[379135337,1755154247279,-460.0,0.00018459,2]
[379135338,1755154247289,-255.89055285,0.00018459,2]
[379135339,1755154247298,-151.0,0.00018459,2]
[379135340,1755154247307,-894.94,0.00018459,2]
[379135341,1755154247317,-151.0,0.00018459,2]
[379135342,1755154247326,-460.0,0.00018459,2]
[379135343,1755154247337,-460.0,0.00018459,2]
[379135344,1755154247347,-460.0,0.00018459,2]
[379135345,1755154247356,-333.36000001,0.00018459,2]
[379135346,1755154247365,-2074.91,0.00018459,2]
[379135347,1755154247375,-460.0,0.00018459,2]
[379135348,1755154247384,-1474.8,0.00018459,2]
[379135349,1755154247394,-460.0,0.00018459,2]
[379135350,1755154247403,-460.0,0.00018459,2]
[379135351,1755154247413,-1404.22,0.00018459,2]
[379135352,1755154247422,-460.0,0.00018459,2]
[379135353,1755154247431,-460.0,0.00018459,2]
[379135354,1755154247440,-151.0,0.00018459,2]
[379135355,1755154247450,-460.0,0.00018459,2]
[379135356,1755154247459,-460.0,0.00018459,2]
[379135357,1755154247468,-460.0,0.00018459,2]
[379135358,1755154247478,-460.0,0.00018459,2]
[379135359,1755154247488,-550.1,0.00018459,2]
[379135360,1755154247497,-460.0,0.00018459,2]
[379135361,1755154247506,-460.0,0.00018459,2]
[379135362,1755154247515,-460.0,0.00018459,2]
[379135363,1755154247525,-460.0,0.00018459,2]
[379135364,1755154247534,-460.0,0.00018459,2]
[379135365,1755154247543,-464.4,0.00018459,2]
[379135366,1755154247552,-437.47828586,0.00018459,2]
[379135367,1755154247561,-460.0,0.00018459,2]
[379135368,1755154247571,-1521.54,0.00018459,2]
[379135369,1755154247580,-460.0,0.00018459,2]
[379135370,1755154247590,-460.0,0.00018459,2]
[379135371,1755154247599,-460.0,0.00018459,2]
[379135372,1755154247608,-460.0,0.00018459,2]
[379135373,1755154247617,-1020.57,0.00018459,2]
[379135374,1755154247627,-460.0,0.00018459,2]
[379135375,1755154247636,-601.99,0.00018459,2]
[379135376,1755154247646,-460.0,0.00018459,2]
[379135378,1755154247655,-460.0,0.00018459,2]
[379135380,1755154247664,-460.0,0.00018459,2]
[379135381,1755154247673,-460.0,0.00018459,2]
[379135383,1755154247683,-464.26,0.00018459,2]
[379135384,1755154247692,-1227.26,0.00018459,2]
[379135385,1755154247701,-460.0,0.00018459,2]
[379135386,1755154247710,-460.0,0.00018459,2]
[379135387,1755154247720,-460.0,0.00018459,2]
[379135388,1755154247729,-151.0,0.0001846,2]
[379135389,1755154247739,-151.0,0.0001846,2]
[379135390,1755154247748,-469.255848,0.0001846,2]
[379135391,1755154247759,-469.255848,0.0001846,2]
[379135392,1755154247769,-460.0,0.00018461,2]
[379135393,1755154247778,-377.96109935,0.00018461,2]
[379135394,1755154247787,-151.0,0.00018461,2]
[379135395,1755154247796,-524.29316708,0.00018461,2]
[379135396,1755154247806,-460.0,0.00018461,2]
[379135397,1755154247816,-151.0,0.00018461,2]
[379135398,1755154247825,-151.0,0.00018461,2]
[379135400,1755154247837,-151.0,0.00018461,2]
[379135401,1755154247847,-157.146284,0.00018461,2]
[379135402,1755154247856,-151.0,0.00018461,2]
[379135403,1755154247871,-151.0,0.00018461,2]
[379135404,1755154247881,-460.0,0.00018461,2]
[379135405,1755154247890,-460.0,0.00018461,2]
[379135406,1755154247901,-830.51,0.00018461,2]
[379135407,1755154247911,-460.0,0.00018461,2]
[379135408,1755154247923,-710.29,0.00018461,2]
[379135409,1755154247938,-205.518455,0.00018461,2]
[379135410,1755154247948,-205.518455,0.00018461,2]
[379135411,1755154247958,-460.0,0.00018461,2]
[379135412,1755154247967,-151.0,0.00018461,2]
[379135413,1755154247977,-519.2,0.00018461,2]
[379135414,1755154247986,-910.1,0.00018461,2]
[379135416,1755154247996,-460.0,0.00018461,2]
[379135418,1755154248006,-460.0,0.00018461,2]
[379135420,1755154248015,-693.54,0.00018461,2]
[379135421,1755154248025,-460.0,0.00018461,2]
[379135423,1755154248034,-460.0,0.00018461,2]
[379135425,1755154248044,-460.0,0.00018461,2]
[379135427,1755154248054,-460.0,0.00018461,2]
[379135429,1755154248063,-460.0,0.00018461,2]
[379135431,1755154248073,-460.0,0.00018461,2]
[379135433,1755154248082,-460.0,0.00018461,2]
[379135435,1755154248092,-1776.35,0.00018461,2]
[379135437,1755154248104,-696.41,0.00018461,2]